[Event "Titled Tuesday Blitz October 11 Late 2022"]
[White "Zomorrodian, Eilia"]
[Black "Tanenbaum, Zachary"]
[WhiteFideId "12551805"]
[BlackFideId "2060850"]
[WhiteElo "2078"]
[BlackElo "2175"]
[Result "0-1"]
[Round "10"]
[TimeControl "180+1"]
[Date "2022.10.11"]
[WhiteClock "0:00:13"]
[BlackClock "0:00:05"]

1. c4 {[%clk 0:02:58]}  e5 {[%clk 0:03:00]} 2. e3 {[%clk 0:02:56]}  Nf6 {[%clk 0:03:00]} 3. a3 {[%clk 0:02:56]}  Nc6 {[%clk 0:03:00]} 4. b4 {[%clk 0:02:56]}  d5 {[%clk 0:02:59]} 5. cxd5 {[%clk 0:02:57]}  Nxd5 {[%clk 0:03:00]} 6. Qc2 {[%clk 0:02:56]}  Bd6 {[%clk 0:02:58]} 7. Bb2 {[%clk 0:02:56]}  O-O {[%clk 0:02:58]} 8. Nf3 {[%clk 0:02:56]}  Be6 {[%clk 0:02:55]} 9. d3 {[%clk 0:02:57]}  Nb6 {[%clk 0:02:53]} 10. Nbd2 {[%clk 0:02:57]}  f5 {[%clk 0:02:53]} 11. Be2 {[%clk 0:02:56]}  Qf6 {[%clk 0:02:52]} 12. O-O {[%clk 0:02:56]}  g5 {[%clk 0:02:52]} 13. Nc4 {[%clk 0:02:46]}  g4 {[%clk 0:02:50]} 14. Nfd2 {[%clk 0:02:43]}  Qh4 {[%clk 0:02:39]} 15. b5 {[%clk 0:02:33]}  Ne7 {[%clk 0:02:11]} 16. Nxe5 {[%clk 0:02:32]}  Ng6 {[%clk 0:02:10]} 17. g3 {[%clk 0:02:14]}  Qh3 {[%clk 0:02:09]} 18. Nxg6 {[%clk 0:02:07]}  hxg6 {[%clk 0:02:10]} 19. Rfe1 {[%clk 0:02:08]}  Rf7 {[%clk 0:02:05]} 20. Bf1 {[%clk 0:02:07]}  Qh5 {[%clk 0:02:03]} 21. Bg2 {[%clk 0:02:05]}  Rh7 {[%clk 0:01:57]} 22. Nf1 {[%clk 0:02:06]}  Nd7 {[%clk 0:01:31]} 23. a4 {[%clk 0:01:47]}  Ne5 {[%clk 0:01:12]} 24. Bxe5 {[%clk 0:01:47]}  Bxe5 {[%clk 0:01:13]} 25. Rac1 {[%clk 0:01:34]}  Kf7 {[%clk 0:01:06]} 26. d4 {[%clk 0:01:23]}  Bd6 {[%clk 0:01:05]} 27. e4 {[%clk 0:01:24]}  f4 {[%clk 0:01:01]} 28. e5 {[%clk 0:01:23]}  f3 {[%clk 0:01:00]} 29. Bh1 {[%clk 0:00:42]}  Bb4 {[%clk 0:00:57]} 30. Re3 {[%clk 0:00:34]}  Be7 {[%clk 0:00:46]} 31. Qe4 {[%clk 0:00:31]}  c6 {[%clk 0:00:30]} 32. bxc6 {[%clk 0:00:27]}  bxc6 {[%clk 0:00:31]} 33. Rxc6 {[%clk 0:00:28]}  Rd8 {[%clk 0:00:31]} 34. Rc7 {[%clk 0:00:22]}  Qf5 {[%clk 0:00:28]} 35. Bxf3 {[%clk 0:00:21]}  Ke8 {[%clk 0:00:09]} 36. Qxf5 {[%clk 0:00:19]}  gxf5 {[%clk 0:00:10]} 37. Bc6+ {[%clk 0:00:20]}  Kf8 {[%clk 0:00:10]} 38. Rd3 {[%clk 0:00:16]}  Bc4 {[%clk 0:00:10]} 39. Rd1 {[%clk 0:00:17]}  Bb3 {[%clk 0:00:10]} 40. Rd2 {[%clk 0:00:15]}  Rf7 {[%clk 0:00:08]} 41. d5 {[%clk 0:00:15]}  Bb4 {[%clk 0:00:08]} 42. Rb2 {[%clk 0:00:14]}  Rxc7 {[%clk 0:00:07]} 43. Rxb3 {[%clk 0:00:15]}  Bc5 {[%clk 0:00:07]} 44. Ne3 {[%clk 0:00:15]}  Bxe3 {[%clk 0:00:07]} 45. Rxe3 {[%clk 0:00:16]}  Re7 {[%clk 0:00:05]} 46. d6 {[%clk 0:00:14]}  Re6 {[%clk 0:00:05]} 47. Bd5 {[%clk 0:00:14]}  Ree8 {[%clk 0:00:05]} 48. Rb3 {[%clk 0:00:13]}  Rxe5 {[%clk 0:00:03]} 49. Bc6 {[%clk 0:00:12]}  Rxd6 {[%clk 0:00:04]} 50. h3 {[%clk 0:00:09]}  Rxc6 {[%clk 0:00:04]} 51. Rb8+ {[%clk 0:00:09]}  Kf7 {[%clk 0:00:04]} 52. Rb7+ {[%clk 0:00:10]}  Re7 {[%clk 0:00:04]} 53. hxg4 {[%clk 0:00:11]}  Rxb7 {[%clk 0:00:04]} 54. gxf5 {[%clk 0:00:12]}  Rb4 {[%clk 0:00:04]} 55. Kg2 {[%clk 0:00:13]}  Rxa4 {[%clk 0:00:05]} 0-1


[Site "https://www.chess.com"]

[Event "Titled Tuesday Blitz October 11 Late 2022"]
[White "Aarav Dengla"]
[Black "Vlassov, Nikolai"]
[WhiteFideId "45059756"]
[BlackFideId "4103360"]
[WhiteElo "2257"]
[BlackElo "2324"]
[Result "1/2-1/2"]
[Round "11"]
[TimeControl "180+1"]
[Date "2022.10.11"]
[WhiteClock "0:00:21"]
[BlackClock "0:00:08"]

1. e4 {[%clk 0:03:00]}  c5 {[%clk 0:02:59]} 2. Nf3 {[%clk 0:03:00]}  d6 {[%clk 0:02:59]} 3. d4 {[%clk 0:02:59]}  cxd4 {[%clk 0:02:59]} 4. Nxd4 {[%clk 0:03:00]}  Nf6 {[%clk 0:02:59]} 5. Nc3 {[%clk 0:03:01]}  g6 {[%clk 0:02:59]} 6. Be3 {[%clk 0:03:00]}  a6 {[%clk 0:02:59]} 7. f3 {[%clk 0:02:56]}  Nbd7 {[%clk 0:02:58]} 8. Qd2 {[%clk 0:02:56]}  Qc7 {[%clk 0:02:57]} 9. h4 {[%clk 0:02:55]}  b5 {[%clk 0:02:48]} 10. a3 {[%clk 0:02:55]}  Bb7 {[%clk 0:02:48]} 11. Bh6 {[%clk 0:02:52]}  Bxh6 {[%clk 0:02:39]} 12. Qxh6 {[%clk 0:02:53]}  d5 {[%clk 0:02:39]} 13. exd5 {[%clk 0:02:50]}  Nxd5 {[%clk 0:02:38]} 14. Nxd5 {[%clk 0:02:51]}  Bxd5 {[%clk 0:02:38]} 15. O-O-O {[%clk 0:02:52]}  Rc8 {[%clk 0:02:28]} 16. Qg7 {[%clk 0:02:37]}  Rf8 {[%clk 0:02:26]} 17. Bd3 {[%clk 0:02:34]}  Nf6 {[%clk 0:02:11]} 18. Rhe1 {[%clk 0:02:20]}  Qf4+ {[%clk 0:02:09]} 19. Kb1 {[%clk 0:02:17]}  Rg8 {[%clk 0:02:06]} 20. g3 {[%clk 0:02:07]}  Qxd4 {[%clk 0:01:51]} 21. Bxb5+ {[%clk 0:01:47]}  axb5 {[%clk 0:01:51]} 22. Qxg8+ {[%clk 0:01:47]}  Nxg8 {[%clk 0:01:51]} 23. Rxd4 {[%clk 0:01:47]}  Bxf3 {[%clk 0:01:43]} 24. Re5 {[%clk 0:01:47]}  Bc6 {[%clk 0:01:39]} 25. h5 {[%clk 0:01:47]}  Nf6 {[%clk 0:01:35]} 26. hxg6 {[%clk 0:01:47]}  hxg6 {[%clk 0:01:33]} 27. c4 {[%clk 0:01:46]}  bxc4 {[%clk 0:01:29]} 28. Rxc4 {[%clk 0:01:47]}  Kd7 {[%clk 0:01:14]} 29. a4 {[%clk 0:01:44]}  Rh8 {[%clk 0:01:04]} 30. Rd4+ {[%clk 0:01:42]}  Ke8 {[%clk 0:00:59]} 31. Rc5 {[%clk 0:01:42]}  Bd7 {[%clk 0:00:55]} 32. a5 {[%clk 0:01:41]}  Rh1+ {[%clk 0:00:46]} 33. Ka2 {[%clk 0:01:33]}  Be6+ {[%clk 0:00:45]} 34. b3 {[%clk 0:01:29]}  Rh2+ {[%clk 0:00:30]} 35. Ka3 {[%clk 0:01:26]}  Rh1 {[%clk 0:00:25]} 36. Kb2 {[%clk 0:01:24]}  Rh2+ {[%clk 0:00:22]} 37. Rc2 {[%clk 0:01:23]}  Rxc2+ {[%clk 0:00:22]} 38. Kxc2 {[%clk 0:01:24]}  Bd5 {[%clk 0:00:22]} 39. a6 {[%clk 0:01:23]}  e5 {[%clk 0:00:20]} 40. Rb4 {[%clk 0:01:17]}  Kd7 {[%clk 0:00:20]} 41. a7 {[%clk 0:01:15]}  Kc7 {[%clk 0:00:19]} 42. Rb8 {[%clk 0:01:15]}  Be4+ {[%clk 0:00:17]} 43. Kd2 {[%clk 0:01:13]}  Nh5 {[%clk 0:00:16]} 44. g4 {[%clk 0:01:13]}  Nf6 {[%clk 0:00:15]} 45. a8=Q {[%clk 0:01:11]}  Bxa8 {[%clk 0:00:14]} 46. Rxa8 {[%clk 0:01:12]}  Nxg4 {[%clk 0:00:15]} 47. Ra7+ {[%clk 0:01:13]}  Kc6 {[%clk 0:00:16]} 48. Rxf7 {[%clk 0:01:13]}  Kc5 {[%clk 0:00:16]} 49. Rg7 {[%clk 0:01:10]}  Nf6 {[%clk 0:00:12]} 50. Rxg6 {[%clk 0:01:09]}  Nd5 {[%clk 0:00:12]} 51. Rg8 {[%clk 0:01:08]}  e4 {[%clk 0:00:10]} 52. Rc8+ {[%clk 0:01:01]}  Kb4 {[%clk 0:00:10]} 53. Rb8+ {[%clk 0:01:01]}  Kc5 {[%clk 0:00:10]} 54. Ke2 {[%clk 0:01:01]}  Kd4 {[%clk 0:00:10]} 55. b4 {[%clk 0:01:00]}  Kc4 {[%clk 0:00:09]} 56. b5 {[%clk 0:00:48]}  Nc3+ {[%clk 0:00:09]} 57. Ke3 {[%clk 0:00:48]}  Nxb5 {[%clk 0:00:09]} 58. Kxe4 {[%clk 0:00:49]}  Nd6+ {[%clk 0:00:10]} 59. Ke5 {[%clk 0:00:50]}  Kc5 {[%clk 0:00:10]} 60. Rb1 {[%clk 0:00:48]}  Nc4+ {[%clk 0:00:10]} 61. Ke6 {[%clk 0:00:49]}  Nd2 {[%clk 0:00:10]} 62. Rc1+ {[%clk 0:00:49]}  Kd4 {[%clk 0:00:10]} 63. Rh1 {[%clk 0:00:49]}  Nc4 {[%clk 0:00:10]} 64. Rh4+ {[%clk 0:00:49]}  Kc5 {[%clk 0:00:11]} 65. Rh5+ {[%clk 0:00:46]}  Kd4 {[%clk 0:00:11]} 66. Rd5+ {[%clk 0:00:45]}  Ke4 {[%clk 0:00:12]} 67. Rd1 {[%clk 0:00:45]}  Ne3 {[%clk 0:00:10]} 68. Rd8 {[%clk 0:00:44]}  Nf5 {[%clk 0:00:08]} 69. Ra8 {[%clk 0:00:42]}  Nd4+ {[%clk 0:00:08]} 70. Kd6 {[%clk 0:00:42]}  Nf5+ {[%clk 0:00:09]} 71. Kc5 {[%clk 0:00:43]}  Ke5 {[%clk 0:00:09]} 72. Re8+ {[%clk 0:00:42]}  Kf6 {[%clk 0:00:09]} 73. Kd5 {[%clk 0:00:43]}  Ne7+ {[%clk 0:00:08]} 74. Ke4 {[%clk 0:00:43]}  Ke6 {[%clk 0:00:06]} 75. Rd8 {[%clk 0:00:25]}  Nf5 {[%clk 0:00:05]} 76. Rd1 {[%clk 0:00:24]}  Nd6+ {[%clk 0:00:05]} 77. Kf4 {[%clk 0:00:25]}  Nf7 {[%clk 0:00:04]} 78. Re1+ {[%clk 0:00:24]}  Kf6 {[%clk 0:00:04]} 79. Rb1 {[%clk 0:00:25]}  Nd6 {[%clk 0:00:04]} 80. Rh1 {[%clk 0:00:22]}  Ke6 {[%clk 0:00:05]} 81. Rh5 {[%clk 0:00:22]}  Nf7 {[%clk 0:00:05]} 82. Ke4 {[%clk 0:00:23]}  Nd6+ {[%clk 0:00:05]} 83. Kd4 {[%clk 0:00:22]}  Nf5+ {[%clk 0:00:05]} 84. Kc5 {[%clk 0:00:22]}  Ke5 {[%clk 0:00:06]} 85. Kc4 {[%clk 0:00:20]}  Ke6 {[%clk 0:00:06]} 86. Kc5 {[%clk 0:00:19]}  Ke5 {[%clk 0:00:07]} 87. Rh8 {[%clk 0:00:19]}  Ke4 {[%clk 0:00:07]} 88. Re8+ {[%clk 0:00:19]}  Kf4 {[%clk 0:00:07]} 89. Kd5 {[%clk 0:00:20]}  Ne3+ {[%clk 0:00:08]} 90. Kd4 {[%clk 0:00:20]}  Nf5+ {[%clk 0:00:08]} 91. Kd3 {[%clk 0:00:21]}  Kg5 {[%clk 0:00:08]} 92. Rf8 {[%clk 0:00:18]}  Kf4 {[%clk 0:00:08]} 93. Re8 {[%clk 0:00:19]}  Kg5 {[%clk 0:00:08]} 94. Re1 {[%clk 0:00:20]}  Kf4 {[%clk 0:00:08]} 95. Re4+ {[%clk 0:00:19]}  Kg5 {[%clk 0:00:09]} 96. Ra4 {[%clk 0:00:18]}  Kf6 {[%clk 0:00:09]} 97. Ke4 {[%clk 0:00:19]}  Nd6+ {[%clk 0:00:09]} 98. Kd5 {[%clk 0:00:19]}  Nf5 {[%clk 0:00:09]} 99. Rf4 {[%clk 0:00:19]}  Kg5 {[%clk 0:00:08]} 100. Ke5 {[%clk 0:00:20]}  Ne7 {[%clk 0:00:08]} 101. Rf1 {[%clk 0:00:21]}  Ng6+ {[%clk 0:00:09]} 102. Ke4 {[%clk 0:00:21]}  Ne7 {[%clk 0:00:06]} 103. Ke5 {[%clk 0:00:21]}  Ng6+ {[%clk 0:00:07]} 104. Ke6 {[%clk 0:00:21]}  Nf4+ {[%clk 0:00:07]} 105. Kf7 {[%clk 0:00:21]}  Kf5 {[%clk 0:00:08]} 106. Ra1 {[%clk 0:00:20]}  Ke5 {[%clk 0:00:08]} 107. Ra4 {[%clk 0:00:20]}  Nd5 {[%clk 0:00:08]} 108. Kg6 {[%clk 0:00:21]} 1/2-1/2


[Site "https://www.chess.com"]

[Event "Titled Tuesday Blitz October 11 Late 2022"]
[White "Barash, Anton"]
[Black "Vujcic, Milena"]
[WhiteFideId "30935229"]
[BlackFideId "954748"]
[WhiteElo "2283"]
[BlackElo "1931"]
[Result "1-0"]
[Round "11"]
[TimeControl "180+1"]
[Date "2022.10.12"]
[WhiteClock "0:00:22"]
[BlackClock "0:00:16"]

1. e4 {[%clk 0:03:00]}  e5 {[%clk 0:02:59]} 2. Nc3 {[%clk 0:03:00]}  Nf6 {[%clk 0:02:57]} 3. f4 {[%clk 0:02:59]}  d5 {[%clk 0:02:55]} 4. fxe5 {[%clk 0:02:59]}  Nxe4 {[%clk 0:02:55]} 5. Qf3 {[%clk 0:03:00]}  Nxc3 {[%clk 0:02:47]} 6. dxc3 {[%clk 0:03:00]}  Be6 {[%clk 0:02:48]} 7. Qg3 {[%clk 0:02:57]}  c5 {[%clk 0:02:43]} 8. Bf4 {[%clk 0:02:54]}  Nc6 {[%clk 0:02:43]} 9. O-O-O {[%clk 0:02:55]}  Qa5 {[%clk 0:02:42]} 10. a3 {[%clk 0:02:40]}  O-O-O {[%clk 0:02:40]} 11. Nf3 {[%clk 0:02:37]}  h6 {[%clk 0:02:36]} 12. h4 {[%clk 0:02:30]}  Be7 {[%clk 0:02:28]} 13. Qxg7 {[%clk 0:02:23]}  Rdg8 {[%clk 0:02:25]} 14. Bxh6 {[%clk 0:02:20]}  Rxg7 {[%clk 0:02:24]} 15. Bxg7 {[%clk 0:02:21]}  Rg8 {[%clk 0:02:23]} 16. Bh6 {[%clk 0:02:19]}  d4 {[%clk 0:02:13]} 17. c4 {[%clk 0:02:11]}  Bg4 {[%clk 0:02:10]} 18. Bf4 {[%clk 0:02:06]}  a6 {[%clk 0:01:56]} 19. h5 {[%clk 0:01:59]}  Qd8 {[%clk 0:01:54]} 20. Kb1 {[%clk 0:01:45]}  Bxf3 {[%clk 0:01:34]} 21. gxf3 {[%clk 0:01:45]}  Bg5 {[%clk 0:01:34]} 22. Bh2 {[%clk 0:01:33]}  Qe7 {[%clk 0:01:31]} 23. Re1 {[%clk 0:01:20]}  Be3 {[%clk 0:01:26]} 24. f4 {[%clk 0:01:05]}  Rh8 {[%clk 0:01:16]} 25. Bg3 {[%clk 0:00:59]}  Kb8 {[%clk 0:01:11]} 26. Bd3 {[%clk 0:00:54]}  Ka7 {[%clk 0:01:11]} 27. h6 {[%clk 0:00:53]}  Nd8 {[%clk 0:00:56]} 28. Bh4 {[%clk 0:00:42]}  Qxh4 {[%clk 0:00:26]} 29. Rxh4 {[%clk 0:00:41]}  Bf2 {[%clk 0:00:26]} 30. Reh1 {[%clk 0:00:29]}  Bxh4 {[%clk 0:00:26]} 31. Rxh4 {[%clk 0:00:30]}  Ne6 {[%clk 0:00:23]} 32. h7 {[%clk 0:00:26]}  Nf8 {[%clk 0:00:20]} 33. Rg4 {[%clk 0:00:26]}  Nxh7 {[%clk 0:00:17]} 34. Rh4 {[%clk 0:00:26]}  Rg8 {[%clk 0:00:17]} 35. Rxh7 {[%clk 0:00:25]}  Rg4 {[%clk 0:00:18]} 36. Rxf7 {[%clk 0:00:25]}  Rg1+ {[%clk 0:00:17]} 37. Ka2 {[%clk 0:00:25]}  Kb6 {[%clk 0:00:18]} 38. e6 {[%clk 0:00:25]}  Ka5 {[%clk 0:00:18]} 39. e7 {[%clk 0:00:25]}  Re1 {[%clk 0:00:18]} 40. f5 {[%clk 0:00:26]}  b5 {[%clk 0:00:19]} 41. cxb5 {[%clk 0:00:26]}  axb5 {[%clk 0:00:19]} 42. f6 {[%clk 0:00:24]}  c4 {[%clk 0:00:19]} 43. Rf8 {[%clk 0:00:22]}  cxd3 {[%clk 0:00:16]} 44. cxd3 {[%clk 0:00:22]} 1-0


[Site "https://www.chess.com"]

[Event "Titled Tuesday Blitz October 11 Late 2022"]
[White "Barria Zuniga, Daniel"]
[Black "Girel, Joseph"]
[WhiteFideId "3400816"]
[BlackFideId "36033561"]
[WhiteElo "2414"]
[BlackElo "2281"]
[Result "1-0"]
[Round "11"]
[TimeControl "180+1"]
[Date "2022.10.11"]
[WhiteClock "0:00:39"]
[BlackClock "0:00:17"]

1. d4 {[%clk 0:02:57]}  Nf6 {[%clk 0:02:56]} 2. c4 {[%clk 0:02:58]}  e6 {[%clk 0:02:57]} 3. Nf3 {[%clk 0:02:57]}  d5 {[%clk 0:02:57]} 4. Nc3 {[%clk 0:02:57]}  dxc4 {[%clk 0:02:57]} 5. e3 {[%clk 0:02:57]}  a6 {[%clk 0:02:57]} 6. Bxc4 {[%clk 0:02:58]}  b5 {[%clk 0:02:57]} 7. Bb3 {[%clk 0:02:58]}  Bb7 {[%clk 0:02:57]} 8. O-O {[%clk 0:02:59]}  Nbd7 {[%clk 0:02:58]} 9. Re1 {[%clk 0:02:59]}  c5 {[%clk 0:02:58]} 10. e4 {[%clk 0:03:00]}  cxd4 {[%clk 0:02:57]} 11. Nxd4 {[%clk 0:03:01]}  Ne5 {[%clk 0:02:56]} 12. Bf4 {[%clk 0:02:57]}  Ng6 {[%clk 0:02:56]} 13. Bg3 {[%clk 0:02:54]}  Bc5 {[%clk 0:02:55]} 14. Nf3 {[%clk 0:02:40]}  Qb6 {[%clk 0:02:53]} 15. e5 {[%clk 0:02:30]}  Nh5 {[%clk 0:02:51]} 16. Ne4 {[%clk 0:02:24]}  Bxe4 {[%clk 0:02:50]} 17. Rxe4 {[%clk 0:02:23]}  Nxg3 {[%clk 0:02:49]} 18. hxg3 {[%clk 0:02:24]}  Bxf2+ {[%clk 0:02:49]} 19. Kh2 {[%clk 0:02:24]}  O-O {[%clk 0:02:49]} 20. Qe2 {[%clk 0:02:00]}  Rad8 {[%clk 0:02:45]} 21. Rf1 {[%clk 0:02:00]}  Bc5 {[%clk 0:02:44]} 22. Ng5 {[%clk 0:01:58]}  h6 {[%clk 0:02:29]} 23. Nxf7 {[%clk 0:01:57]}  Rxf7 {[%clk 0:02:29]} 24. Rxf7 {[%clk 0:01:57]}  Kxf7 {[%clk 0:02:25]} 25. Qh5 {[%clk 0:01:56]}  Rd4 {[%clk 0:01:09]} 26. Qf5+ {[%clk 0:01:33]}  Ke7 {[%clk 0:01:07]} 27. Qxg6 {[%clk 0:01:28]}  Rxe4 {[%clk 0:00:57]} 28. Qxg7+ {[%clk 0:01:16]}  Kd8 {[%clk 0:00:58]} 29. Qg8+ {[%clk 0:01:09]}  Kc7 {[%clk 0:00:35]} 30. Qh7+ {[%clk 0:01:06]}  Kb8 {[%clk 0:00:35]} 31. Qxe4 {[%clk 0:01:06]}  Bd4 {[%clk 0:00:35]} 32. Bxe6 {[%clk 0:00:59]}  Bxb2 {[%clk 0:00:29]} 33. Bg4 {[%clk 0:00:55]}  Qd4 {[%clk 0:00:23]} 34. Qg6 {[%clk 0:00:41]}  Qxe5 {[%clk 0:00:19]} 35. Qb6+ {[%clk 0:00:40]}  Ka8 {[%clk 0:00:17]} 36. Bf3+ {[%clk 0:00:39]} 1-0


[Site "https://www.chess.com"]

[Event "Titled Tuesday Blitz October 11 Late 2022"]
[White "Buchenau, Frank"]
[Black "Winterberg, Lukas"]
[WhiteFideId "4604350"]
[BlackFideId "24622702"]
[WhiteElo "2157"]
[BlackElo "2349"]
[Result "1-0"]
[Round "11"]
[TimeControl "180+1"]
[Date "2022.10.12"]
[WhiteClock "0:00:51"]
[BlackClock "0:00:03"]

1. e4 {[%clk 0:03:00]}  e6 {[%clk 0:02:58]} 2. d4 {[%clk 0:02:59]}  d5 {[%clk 0:02:58]} 3. Nd2 {[%clk 0:02:58]}  c5 {[%clk 0:02:58]} 4. Ngf3 {[%clk 0:02:58]}  cxd4 {[%clk 0:02:58]} 5. exd5 {[%clk 0:02:58]}  Qxd5 {[%clk 0:02:58]} 6. Bc4 {[%clk 0:02:57]}  Qd7 {[%clk 0:02:59]} 7. O-O {[%clk 0:02:57]}  Nc6 {[%clk 0:02:59]} 8. Nb3 {[%clk 0:02:56]}  a6 {[%clk 0:03:00]} 9. Nbxd4 {[%clk 0:02:56]}  Nxd4 {[%clk 0:03:01]} 10. Nxd4 {[%clk 0:02:55]}  Qc7 {[%clk 0:03:01]} 11. Qe2 {[%clk 0:02:52]}  Bd6 {[%clk 0:03:00]} 12. h3 {[%clk 0:02:45]}  Ne7 {[%clk 0:02:59]} 13. b3 {[%clk 0:02:41]}  O-O {[%clk 0:02:58]} 14. Bb2 {[%clk 0:02:41]}  Ng6 {[%clk 0:02:17]} 15. Qh5 {[%clk 0:02:28]}  e5 {[%clk 0:01:59]} 16. Nf5 {[%clk 0:02:23]}  Nf4 {[%clk 0:01:30]} 17. Qg5 {[%clk 0:02:20]}  Bxf5 {[%clk 0:01:21]} 18. Qxf5 {[%clk 0:02:19]}  Qc6 {[%clk 0:01:09]} 19. f3 {[%clk 0:01:59]}  g6 {[%clk 0:00:55]} 20. Qe4 {[%clk 0:01:49]}  Qxe4 {[%clk 0:00:47]} 21. fxe4 {[%clk 0:01:50]}  b5 {[%clk 0:00:34]} 22. Bd3 {[%clk 0:01:37]}  Bc5+ {[%clk 0:00:23]} 23. Kh2 {[%clk 0:01:36]}  f6 {[%clk 0:00:20]} 24. Rad1 {[%clk 0:01:31]}  Rad8 {[%clk 0:00:18]} 25. g3 {[%clk 0:01:30]}  Nxd3 {[%clk 0:00:15]} 26. Rxd3 {[%clk 0:01:22]}  Rxd3 {[%clk 0:00:14]} 27. cxd3 {[%clk 0:01:23]}  Kg7 {[%clk 0:00:08]} 28. Rc1 {[%clk 0:01:22]}  Be7 {[%clk 0:00:06]} 29. Rc7 {[%clk 0:01:20]}  Rf7 {[%clk 0:00:05]} 30. Rc6 {[%clk 0:01:19]}  a5 {[%clk 0:00:04]} 31. d4 {[%clk 0:01:18]}  exd4 {[%clk 0:00:03]} 32. Bxd4 {[%clk 0:01:19]}  Bd8 {[%clk 0:00:04]} 33. e5 {[%clk 0:01:18]}  fxe5 {[%clk 0:00:01]} 34. Bxe5+ {[%clk 0:01:18]}  Kg8 {[%clk 0:00:02]} 35. Kg2 {[%clk 0:01:17]}  Rf8 {[%clk 0:00:02]} 36. Bd6 {[%clk 0:01:15]}  Re8 {[%clk 0:00:03]} 37. Rc8 {[%clk 0:01:14]}  Kf7 {[%clk 0:00:04]} 38. Kf3 {[%clk 0:01:13]}  Ke6 {[%clk 0:00:02]} 39. Bf4 {[%clk 0:01:11]}  Kd7 {[%clk 0:00:02]} 40. Rb8 {[%clk 0:01:10]}  b4 {[%clk 0:00:02]} 41. Rb7+ {[%clk 0:01:09]}  Kc6 {[%clk 0:00:02]} 42. Rxh7 {[%clk 0:01:09]}  Re1 {[%clk 0:00:02]} 43. Rg7 {[%clk 0:01:07]}  g5 {[%clk 0:00:03]} 44. Bxg5 {[%clk 0:01:06]}  Bxg5 {[%clk 0:00:03]} 45. Rxg5 {[%clk 0:01:06]}  Ra1 {[%clk 0:00:04]} 46. Rxa5 {[%clk 0:01:05]}  Kb6 {[%clk 0:00:04]} 47. Ra4 {[%clk 0:01:05]}  Kb5 {[%clk 0:00:04]} 48. h4 {[%clk 0:01:05]}  Rf1+ {[%clk 0:00:04]} 49. Kg4 {[%clk 0:01:05]}  Rf7 {[%clk 0:00:05]} 50. h5 {[%clk 0:01:05]}  Rg7+ {[%clk 0:00:06]} 51. Kh4 {[%clk 0:01:06]}  Rf7 {[%clk 0:00:06]} 52. h6 {[%clk 0:01:05]}  Rf2 {[%clk 0:00:06]} 53. g4 {[%clk 0:01:04]}  Kc5 {[%clk 0:00:06]} 54. g5 {[%clk 0:01:04]}  Kd5 {[%clk 0:00:07]} 55. g6 {[%clk 0:01:03]}  Ke5 {[%clk 0:00:08]} 56. g7 {[%clk 0:01:00]}  Rg2 {[%clk 0:00:08]} 57. Ra8 {[%clk 0:00:58]}  Kf5 {[%clk 0:00:07]} 58. g8=Q {[%clk 0:00:56]}  Rh2+ {[%clk 0:00:03]} 59. Kg3 {[%clk 0:00:55]}  Rxh6 {[%clk 0:00:04]} 60. Ra5+ {[%clk 0:00:54]}  Ke4 {[%clk 0:00:03]} 61. Qd5+ {[%clk 0:00:52]}  Ke3 {[%clk 0:00:03]} 62. Qg5+ {[%clk 0:00:51]} 1-0


[Site "https://www.chess.com"]

[Event "Titled Tuesday Blitz October 11 Late 2022"]
[White "Carbone, Diego"]
[Black "Arnold, Ken"]
[WhiteFideId "3002179"]
[BlackFideId "2056836"]
[WhiteElo "2243"]
[BlackElo "2359"]
[Result "1-0"]
[Round "11"]
[TimeControl "180+1"]
[Date "2022.10.12"]
[WhiteClock "0:00:18"]
[BlackClock "0:00:02"]

1. d4 {[%clk 0:02:56]}  d5 {[%clk 0:02:59]} 2. c4 {[%clk 0:02:56]}  c6 {[%clk 0:02:59]} 3. Nf3 {[%clk 0:02:56]}  Nf6 {[%clk 0:02:59]} 4. e3 {[%clk 0:02:57]}  Bg4 {[%clk 0:02:56]} 5. Nc3 {[%clk 0:02:56]}  e6 {[%clk 0:02:56]} 6. h3 {[%clk 0:02:53]}  Bxf3 {[%clk 0:02:55]} 7. Qxf3 {[%clk 0:02:51]}  Bb4 {[%clk 0:02:54]} 8. Bd3 {[%clk 0:02:39]}  Nbd7 {[%clk 0:02:51]} 9. Bd2 {[%clk 0:02:31]}  dxc4 {[%clk 0:02:38]} 10. Bxc4 {[%clk 0:02:31]}  Nb6 {[%clk 0:02:31]} 11. Bb3 {[%clk 0:02:14]}  a5 {[%clk 0:02:29]} 12. a4 {[%clk 0:02:08]}  Nbd5 {[%clk 0:02:27]} 13. O-O {[%clk 0:02:06]}  O-O {[%clk 0:02:26]} 14. e4 {[%clk 0:02:01]}  Ne7 {[%clk 0:02:10]} 15. Rad1 {[%clk 0:01:47]}  b6 {[%clk 0:02:08]} 16. Rfe1 {[%clk 0:01:45]}  Ra7 {[%clk 0:02:08]} 17. Bc2 {[%clk 0:01:40]}  Rd7 {[%clk 0:02:07]} 18. e5 {[%clk 0:01:39]}  Nfd5 {[%clk 0:02:04]} 19. Bg5 {[%clk 0:01:37]}  Qe8 {[%clk 0:01:37]} 20. Re4 {[%clk 0:01:28]}  Nf5 {[%clk 0:01:30]} 21. g4 {[%clk 0:01:22]}  f6 {[%clk 0:01:22]} 22. exf6 {[%clk 0:01:19]}  Nd6 {[%clk 0:01:18]} 23. Nxd5 {[%clk 0:01:10]}  cxd5 {[%clk 0:01:12]} 24. Re2 {[%clk 0:01:08]}  gxf6 {[%clk 0:01:09]} 25. Bh6 {[%clk 0:01:07]}  Rff7 {[%clk 0:01:05]} 26. Bd3 {[%clk 0:01:04]}  Rde7 {[%clk 0:00:59]} 27. Rc1 {[%clk 0:01:01]}  Qxa4 {[%clk 0:00:37]} 28. Rec2 {[%clk 0:00:43]}  Qe8 {[%clk 0:00:26]} 29. Rc6 {[%clk 0:00:42]}  e5 {[%clk 0:00:25]} 30. Qxd5 {[%clk 0:00:42]}  e4 {[%clk 0:00:20]} 31. Bb5 {[%clk 0:00:40]}  e3 {[%clk 0:00:13]} 32. fxe3 {[%clk 0:00:36]}  Rxe3 {[%clk 0:00:13]} 33. Rc8 {[%clk 0:00:29]}  Nxc8 {[%clk 0:00:07]} 34. Bxe8 {[%clk 0:00:28]}  Rxe8 {[%clk 0:00:07]} 35. Rf1 {[%clk 0:00:24]}  Ne7 {[%clk 0:00:06]} 36. Qe6 {[%clk 0:00:23]}  f5 {[%clk 0:00:04]} 37. gxf5 {[%clk 0:00:22]}  Rd8 {[%clk 0:00:04]} 38. Kh1 {[%clk 0:00:18]}  Rxd4 {[%clk 0:00:02]} 39. Rg1+ {[%clk 0:00:18]} 1-0


[Site "https://www.chess.com"]